{"text_format":"1","workbook":"xlsx","n_sheets":3,"sheets":["MML","CNV","資料"],"not_rendered":{"charts":0,"images":1,"macros":1,"external_links":0,"defined_names":10,"comments":0,"pivot_tables":0},"unopened":[],"bounds":{"document_bytes":16777216,"sheet_cells":100000,"rows_first":2000,"rows_last":500,"rows_between":2000,"halvings":0,"cell_chars":16384,"cell_head_chars":4096},"cells_cut":0,"cells_raw":0,"read":"whole","date_system":"1900"}

{"sheet":"MML","index":0,"n_rows":0,"n_cols":0,"rows_kept":0,"cut":false,"hidden":false,"merged":[]}

{"sheet":"CNV","index":1,"n_rows":97,"n_cols":35,"rows_kept":97,"cut":false,"hidden":false,"merged":[]}
["z2h",null,null,"h2z",null,null,"#2b",null,"b2#",null,null,"shift+1",null,null,"shift-1",null,null,"kana",null,null,"small",null,null,"定義１",null,"定義２",null,"ドレミ",null,"sky",null,"ラッパ譜",null,"島メロ"]
["↑",">",null,"C","ド",null,"C#","Db","Cb","B#",null,"C#","c",null,"C#","c",null,{"$f":"\" \"","v":" "},{"$f":"\"　\"","v":"　"},null,"C#","c",null,"↑",null,null,null,"↑",null,"c","uC","ト","uG","g","uG"]
["↓","<",null,"D","レ",null,"D#","Eb","Db","C#",null,"D#","d",null,"D#","d",null,"C","ド",null,"D#","d",null,"↓",null,null,null,"↓",null,"d","uD","タ","C","a","uA"]
[{"$f":"DBCS(B4)","v":"＞"},">",null,"E","ミ",null,"E#","Fb","Eb","D#",null,"F#","f",null,"F#","f",null,"D","レ",null,"F#","f",null,"高",null,null,null,"高",null,"e","uE","テ","E","b","uB"]
[{"$f":"DBCS(B5)","v":"＜"},"<",null,"F","ﾌｧ",null,"F#","Gb","Fb","E#",null,"G#","g",null,"G#","g",null,"E","ミ",null,"G#","g",null,"低",null,null,null,"低",null,"f","uF","チ","hG","c","hC"]
["高","h",null,"G","ソ",null,"G#","Ab","Gb","F#",null,"A#","a",null,"A#","a",null,"F","ﾌｧ",null,"A#","a",null,null,null,null,null,null,null,"g","uG","と","uG","d","hD"]
["低","u",null,"A","ラ",null,"A#","Bb","Ab","G#",null,"Db","c",null,"Db","c",null,"G","ソ",null,"Db","c",null,null,null,null,null,null,null,"a","uA","た","C","e","hE"]
[{"$f":"DBCS(B8)","v":"（"},"(",null,"B","シ",null,"B#","Cb","Bb","A#",null,"Eb","d",null,"Eb","d",null,"A","ラ",null,"Eb","d",null,null,null,null,null,null,null,"b","uB","て","E","そ","uG"]
[{"$f":"DBCS(B9)","v":"）"},")",null,{"$f":"E2&\"b\"","v":"ドb"},{"$f":"E2&\"♭\"","v":"ド♭"},null,null,null,null,null,null,"Gb","f",null,"Gb","f",null,"B","シ",null,"Gb","f",null,null,null,null,null,null,null,"H","hC","ち","hG","ら","uA"]
[{"$f":"DBCS(B10)","v":"＾"},"^",null,"レb","レ♭",null,null,null,null,null,null,"Ab","g",null,"Ab","g",null,{"$f":"S3&\"b\"","v":"ドb"},{"$f":"S3&\"♭\"","v":"ド♭"},null,"Ab","g",null,null,null,null,null,null,null,null,null,"つ","_","し","uB"]
["⌒","^",null,"ミb","ミ♭",null,null,null,null,null,null,"Bb","a",null,"Bb","a",null,"レb","レ♭",null,"Bb","a",null,null,null,null,null,null,null,null,null,"っ","_","ど","hC"]
[{"$f":"\"　\"","v":"　"},{"$f":"\" \"","v":" "},null,"ﾌｧb","ﾌｧ♭",null,null,null,null,null,null,"C","ｃ",null,"C","uＢ",null,"ミb","ミ♭",null,null,null,null,null,null,null,null,null,null,null,null,"ツ","_","れ","hD"]
["｜","|",null,"ソb","ソ♭",null,null,null,null,null,null,"c","Ｄ",null,"c","Ｃ",null,"ﾌｧb","ﾌｧ♭",null,null,null,null,null,null,null,null,null,null,null,null,"ッ","_","み","hE"]
[{"$f":"DBCS(B14)","v":"”"},"\"",null,"ラb","ラ♭",null,null,null,null,null,null,"D","ｄ",null,"D","ｃ",null,"ソb","ソ♭",null,null,null,null,null,null,null,null,null,null,null,null,"　","_"]
[{"$f":"DBCS(B15)","v":"’"},"'",null,"シb","シ♭",null,null,null,null,null,null,"d","Ｅ",null,"d","Ｄ",null,"ラb","ラ♭",null,null,null,null,null,null,null,null,null,null,null,null,"休","_"]
[{"$f":"B14","v":"\""},null,null,"c","ド♯",null,null,null,null,null,null,"E","Ｆ",null,"E","ｄ",null,"シb","シ♭",null,null,null,null,null,null,null,null,null,null,null,null,"ヤ","_"]
[{"$f":"B15","v":"'"},null,null,"d","レ♯",null,null,null,null,null,null,"F","ｆ",null,"F","Ｅ",null,"c","ド♯",null,null,null,null,null,null,null,null,null,null,null,null,"ー","-"]
[{"$f":"DBCS(B18)","v":"Ｃ"},"C",null,"e","ミ♭",null,null,null,null,null,null,"f","Ｇ",null,"f","Ｆ",null,"d","レ♯",null,null,null,null,null,null,null,null,null,null,null,null,"－","-"]
["Ｄ","D",null,"f","ﾌｧ♯",null,null,null,null,null,null,"G","ｇ",null,"G","ｆ",null,"e","ミ♭",null,null,null,null,null,null,null,null,null,null,null,null,"～","-"]
["Ｅ","E",null,"g","ソ♯",null,null,null,null,null,null,"g","Ａ",null,"g","Ｇ",null,"f",{"$f":"S6&\"♯\"","v":"ﾌｧ♯"}]
["Ｆ","F",null,"a","ラ♯",null,null,null,null,null,null,"A","ａ",null,"A","ｇ",null,"g","ソ♯"]
["Ｇ","G",null,"b","シ♭",null,null,null,null,null,null,"a","Ｂ",null,"a","Ａ",null,"a","ラ♯"]
["Ａ","A",null,"#","♯",null,null,null,null,null,null,"B","hＣ",null,"B","ａ",null,"b","シ♭"]
["Ｂ","B",null,"b","♭",null,null,null,null,null,null,"Ｃ","C",null,"Ｃ","C",null,"#","♯"]
["＃","#",null,"-","ー",null,null,null,null,null,null,"ｃ","C#",null,"ｃ","Db",null,"b","♭"]
["ｃ","c",null,"-","－",null,null,null,null,null,null,"Ｄ","D",null,"Ｄ","D",null,"-","ー"]
["ｄ","d",null,"_","＿",null,null,null,null,null,null,"ｄ","D#",null,"ｄ","Eb",null,"-","－"]
["ｅ","e",null,"R","休",null,null,null,null,null,null,"Ｅ","E",null,"Ｅ","E",null,"_","＿"]
["ｆ","f",null,">","↑",null,null,null,null,null,null,"Ｆ","F",null,"Ｆ","F",null,"R","休"]
["ｇ","g",null,"<","↓",null,null,null,null,null,null,"ｆ","F#",null,"ｆ","Gb",null,0]
["ａ","a",null,"h","高",null,null,null,null,null,null,"Ｇ","G",null,"Ｇ","G",null,1]
["ｂ","b",null,"u","低",null,null,null,null,null,null,"ｇ","G#",null,"ｇ","Ab",null,2]
["ド","C",null,"(",{"$f":"DBCS(D33)","v":"（"},null,null,null,null,null,null,"Ａ","A",null,"Ａ","A",null,3]
["レ","D",null,")",{"$f":"DBCS(D34)","v":"）"},null,null,null,null,null,null,"ａ","A#",null,"ａ","Bb",null,4]
["ミ","E",null,"^","⌒",null,null,null,null,null,null,"Ｂ","B",null,"Ｂ","B",null,5]
["ファ","F",null,null,null,null,null,null,null,null,null,"uh",null,null,"hu",null,null,6]
["ﾌｧ","F",null,null,null,null,null,null,null,null,null,"hu",null,null,"uh",null,null,7]
["ソ","G",null,null,null,null,null,null,null,null,null,null,null,null,null,null,null,8]
["ラ","A",null,null,null,null,null,null,null,null,null,null,null,null,null,null,null,9]
["シ","B",null,null,null,null,null,null,null,null,null,null,null,null,null,null,null,"."]
["ど","hC",null,null,null,null,null,null,null,null,null,null,null,null,null,null,null,"T"]
["れ","hD",null,null,null,null,null,null,null,null,null,null,null,null,null,null,null,"t"]
["み","hE",null,null,null,null,null,null,null,null,null,null,null,null,null,null,null,"L"]
["ふぁ","hF",null,null,null,null,null,null,null,null,null,null,null,null,null,null,null,"O"]
["そ","uG",null,null,null,null,null,null,null,null,null,null,null,null,null,null,null,"o"]
["ら","uA",null,null,null,null,null,null,null,null,null,null,null,null,null,null,null,"@"]
["し","uB",null,null,null,null,null,null,null,null,null,null,null,null,null,null,null,"V"]
["ー","-",null,null,null,null,null,null,null,null,null,null,null,null,null,null,null,"v"]
["－","-",null,null,null,null,null,null,null,null,null,null,null,null,null,null,null,"%"]
["～","-",null,null,null,null,null,null,null,null,null,null,null,null,null,null,null,">"]
["〜","-",null,null,null,null,null,null,null,null,null,null,null,null,null,null,null,"<"]
["＿","_",null,null,null,null,null,null,null,null,null,null,null,null,null,null,null,"h"]
["・","_",null,null,null,null,null,null,null,null,null,null,null,null,null,null,null,"u"]
["×","_",null,null,null,null,null,null,null,null,null,null,null,null,null,null,null,"(","("]
["ウン","_",null,null,null,null,null,null,null,null,null,null,null,null,null,null,null,")",")"]
["ン","_",null,null,null,null,null,null,null,null,null,null,null,null,null,null,null,"^","⌒"]
["うん","_"]
["ん","_"]
["ツ","_"]
["ッ","_"]
["つ","_"]
["っ","_"]
["休","_"]
["ヤ","_"]
["や","_"]
["、","_"]
["､","_"]
["Ｘ","_"]
["Ｘ","_"]
["X","_"]
["x","_"]
["･","_"]
["♯","#"]
["♭","b"]
[{"$f":"DBCS(\"0\")","v":"０"},0]
[{"$f":"DBCS(B76)","v":"１"},1]
["２",2]
["３",3]
["４",4]
["５",5]
["６",6]
["７",7]
["８",8]
["９",9]
["．","."]
["／","/"]
["Ｔ","T"]
["ｔ","t"]
["Ｌ","L"]
["ｌ","l"]
["Ｏ","O"]
["ｏ","o"]
["＠","@"]
["％","%"]
["ｖ","v"]
["&gt;",">"]
["&lt;","<"]

{"sheet":"資料","index":2,"n_rows":129,"n_cols":13,"rows_kept":129,"cut":false,"hidden":false,"merged":[[28,10,28,12],[34,10,34,12],[1,10,1,12],[4,10,4,12],[9,10,9,12],[16,10,16,12],[20,10,20,12]]}
[null,null,"MML文法",null,null,null,"GM　音色",null,null,null,"ＧＭドラム音色"]
[null,null,"CDEFGAB","ドレミファソラシ","音符",null,0,"アコースティックピアノ","Acoustic Piano",null,"ベース・ドラム"]
["*",null,"cdefgab",null,"音符　半音",null,1,"ブライトピアノ","Bright Piano",null,35,"Acoustic Bass Drum","アコースティック系のベース・ドラム。"]
["t90 v8 @115 %50 o6 L4",null,"R　_","・休＿","休符",null,2,"エレクトリック・グランドピアノ","Electric Grand Piano",null,36,"Bass Drum","通常のベース・ドラム。"]
["FCCC",null,"#","♯","♯",null,3,"ホンキートンクピアノ","Honky-tonk Piano",null,"スネア・ドラム"]
[null,null,"b ","♭","♭",null,4,"エレクトリックピアノ","Electric Piano",null,37,"Side Stick","スティック打ち。"]
["ピアノ","t120 L8 v15 o5 @0 %90","{    }",null,"{ノート 0～127 音量割合ABCDEF} ",null,5,"FMエレクトリックピアノ","Electric Piano 2",null,38,"Acoustic Snare","通常のスネア・ドラム。"]
["エレクトリックピアノ","t120 L8 v15 o5 @4 %90","(    )"," （　　）","和音　uh音名#b　８和音まで",null,6,"ハープシコード","Harpsichord",null,39,"Hand Clap","ハンド・クラップ。"]
["オルゴール","t120 L8 v15 o6 @10 %90","数","数","（数値）分音符",null,7,"クラビネット","Clavi",null,40,"Electric Snare","エレクトリック・スネア・ドラム。"]
["カリンバ","t120 L8 v15 o7 @108 %90",".",".","付点",null,8,"チェレスタ","Celesta",null,"タム"]
["リコーダー","t120 L8 v15 o6 @74 %90","'",null,"音の長さ 1/2",null,9,"グロッケンシュピール","Glockenspiel",null,41,"Low Floor Tom","ロー・フロア・タム"]
["オカリナ","t120 L8 v15 o5 @79 %90","/数",null,"（数）連符",null,10,"オルゴール","Musical box",null,43,"High Floor Tom","ハイ・フロア・タム"]
["ハーモニカ","t120 L8 v15 o5 @22 %90","L",null,"音符の長さを設定",null,11,"ヴィブラフォン","Vibraphone",null,45,"Low Tom","ロー・タム"]
["ヴィブラフォン","t120 L8 v15 o5 @11 %90","-","ー－","音を伸ばす",null,12,"マリンバ","Marimba",null,47,"Low-Mid Tom","ロー・ミドル・タム"]
["ハープ","t120 L8 v15 o5 @46 %90","^","⌒","タイ　次の音と連結",null,13,"シロフォン","Xylophone",null,48,"High-Mid Tom","ハイ・ミドル・タム"]
["フルート","t120 L8 v15 o5 @73 %90",">","↑","オクターブ上がる",null,14,"チューブラーベル","Tubular Bell",null,50,"High Tom","ハイ・タム"]
["トランペット","t120 L8 v15 o5 @56 %90 k-2","<","↓","オクターブ下がる",null,15,"ダルシマー","Dulcimer",null,"ハイハット"]
["アルトサックス","t120 L8 v15 o5 @65 %90 k+3","h","高","次の音は１オクターブ上",null,16,"ドローバーオルガン","Drawbar Organ",null,42,"Closed High-Hat","クローズ・ハイハット。"]
["クラリネット","t120 L8 v15 o5 @71 %90 k-2","u","低","次の音は１オクターブ下",null,17,"パーカッシブオルガン","Percussive Organ",null,44,"Pedal High-Hat","足踏みのハイハット。"]
[null,null,"$",null,"$1～$16 MIDIチャンネル　$10はドラム",null,18,"ロックオルガン","Rock Organ",null,46,"Open High-Hat","オープン・ハイハット。"]
[null,null,"T t",null,"テンポ　四分音符／１分",null,19,"チャーチオルガン","Church organ",null,"シンバル"]
[null,null,"V v",null,"音量　0-15　(16-127)",null,20,"リードオルガン","Reed organ",null,49,"Crash Symbal 1","クラッシュ・シンバル 1。"]
[null,null,"%",null,"スタカート50%～80%～テヌート95%",null,21,"アコーディオン","Accordion",null,51,"Ride Symbal 1","ライド・シンバル 1。"]
[null,null,"k",null,"キーシフト　±半音",null,22,"ハーモニカ","Harmonica",null,52,"Chinese Symbal","チャイナ・シンバル。"]
[null,null,"p",null,"ピッチベンド　±１００セント",null,23,"タンゴアコーディオン","Tango Accordion",null,53,"Ride Bell","ライドの中心打ち。"]
[null,null,"!",null,"パンポット　0-64-127",null,24,"アコースティックギター（ナイロン弦）","Acoustic Guitar (nylon)",null,55,"Splash Symbal","スプラッシュ・シンバル。"]
[null,null,"M m",null,"ミュート　音量0～100%",null,25,"アコースティックギター（スチール弦）","Acoustic Guitar (steel)",null,57,"Crash Symbal 2","クラッシュ・シンバル 2。49番より若干音が高い。"]
[null,null,"*",null,"コメント",null,26,"ジャズギター","Electric Guitar (jazz)",null,59,"Ride Symbal 2","ライド・シンバル 2。"]
[null,null,"[ ]",null,"16進数データ",null,27,"クリーンギター","Electric Guitar (clean)",null,"ベル"]
[null,null,null,null,null,null,28,"ミュートギター","Electric Guitar (muted)",null,54,"Tambourine","タンバリン。"]
[null,null,null,null,null,null,29,"オーバードライブギター","Overdriven Guitar",null,56,"Cowbell","カウベル。"]
[null,null,null,null,null,null,30,"ディストーションギター","Distortion Guitar",null,58,"Vibraslap","ヴィブラスラップ。"]
[null,null,null,null,null,null,31,"ギターハーモニクス","Guitar harmonics",null,80,"Mute Triangle","トライアングル（ミュート）。"]
[null,null,null,null,null,null,32,"アコースティックベース","Acoustic Bass",null,81,"Open Triangle","トライアングル（オープン）。"]
[null,null,null,null,null,null,33,"フィンガー・ベース","Electric Bass (finger)",null,"その他"]
[null,null,null,null,null,null,34,"ピック・ベース","Electric Bass (pick)",null,60,"High Bongo","ハイ・ボンゴ。"]
[null,null,null,null,null,null,35,"フレットレスベース","Fretless Bass",null,61,"Low Bongo","ロー・ボンゴ。"]
[null,null,null,null,null,null,36,"スラップベース 1","Slap Bass 1",null,62,"Mute High Conga","ハイ・コンガ（ミュート）。"]
[null,null,null,null,null,null,37,"スラップベース 2","Slap Bass 2",null,63,"Open High Conga","ハイ・コンガ（オープン）。"]
[null,null,null,null,null,null,38,"シンセベース 1","Synth Bass 1",null,64,"Low Conga","ロー・コンガ。"]
[null,null,null,null,null,null,39,"シンセベース 2","Synth Bass 2",null,65,"High Timbale","ハイ・ティンバレ。"]
[null,null,null,null,null,null,40,"ヴァイオリン","Violin",null,66,"Low Timbale","ロー・ティンバレ。"]
[null,null,null,null,null,null,41,"ヴィオラ","Viola",null,67,"High Agogo","ハイ・アゴーゴ。"]
[null,null,null,null,null,null,42,"チェロ","Cello",null,68,"Low Agogo","ロー・アゴーゴ。"]
[null,null,null,null,null,null,43,"コントラバス","Double bass",null,69,"Cabasa","カバッサ。"]
[null,null,null,null,null,null,44,"トレモロ","Tremolo Strings",null,70,"Maracas","マラカス。"]
[null,null,null,null,null,null,45,"ピッチカート","Pizzicato Strings",null,71,"Short Whistle","ショート・ホイッスル。"]
[null,null,null,null,null,null,46,"ハープ","Orchestral Harp",null,72,"Long Whistle","ロング・ホイッスル。"]
[null,null,null,null,null,null,47,"ティンパニ","Timpani",null,73,"Short Guiro","ショート・ギーロ。"]
[null,null,null,null,null,null,48,"ストリングアンサンブル","String Ensemble 1",null,74,"Long Guiro","ロング・ギーロ。"]
[null,null,null,null,null,null,49,"スローストリングアンサンブル","String Ensemble 2",null,75,"Claves","クラベス。"]
[null,null,null,null,null,null,50,"シンセストリングス","Synth Strings 1",null,76,"High Wood Block","ハイ・ウッド・ブロック。"]
[null,null,null,null,null,null,51,"シンセストリングス2","Synth Strings 2",null,77,"Low Wood Block","ロー・ウッド・ブロック。"]
[null,null,null,null,null,null,52,"声「アー」","Voice Aahs",null,78,"Close Cuica","クィーカ（クローズ）。"]
[null,null,null,null,null,null,53,"声「ドゥー」","Voice Oohs",null,79,"Open Cuica","クィーカ（オープン）。"]
[null,null,null,null,null,null,54,"シンセヴォイス","Synth Voice"]
[null,null,null,null,null,null,55,"オーケストラヒット","Orchestra Hit"]
[null,null,null,null,null,null,56,"トランペット","Trumpet"]
[null,null,null,null,null,null,57,"トロンボーン","Trombone"]
[null,null,null,null,null,null,58,"チューバ","Tuba"]
[null,null,null,null,null,null,59,"ミュートトランペット","Muted Trumpet"]
[null,null,null,null,null,null,60,"フレンチ・ホルン","French horn"]
[null,null,null,null,null,null,61,"ブラスセクション","Brass Section"]
[null,null,null,null,null,null,62,"シンセブラス 1","Synth Brass 1"]
[null,null,null,null,null,null,63,"シンセブラス 2","Synth Brass 2"]
[null,null,null,null,null,null,64,"ソプラノサックス","Soprano Sax"]
[null,null,null,null,null,null,65,"アルトサックス","Alto Sax"]
[null,null,null,null,null,null,66,"テナーサックス","Tenor Sax"]
[null,null,null,null,null,null,67,"バリトンサックス","Baritone Sax"]
[null,null,null,null,null,null,68,"オーボエ","Oboe"]
[null,null,null,null,null,null,69,"イングリッシュホルン","English Horn"]
[null,null,null,null,null,null,70,"ファゴット","Bassoon"]
[null,null,null,null,null,null,71,"クラリネット","Clarinet"]
[null,null,null,null,null,null,72,"ピッコロ","Piccolo"]
[null,null,null,null,null,null,73,"フルート","Flute"]
[null,null,null,null,null,null,74,"リコーダー","Recorder"]
[null,null,null,null,null,null,75,"パンフルート","Pan Flute"]
[null,null,null,null,null,null,76,"ブロウンボトル（吹きガラス瓶）","Blown Bottle"]
[null,null,null,null,null,null,77,"尺八","Shakuhachi"]
[null,null,null,null,null,null,78,"口笛","Whistle"]
[null,null,null,null,null,null,79,"オカリナ","Ocarina"]
[null,null,null,null,null,null,80,"正方波","Lead 1 (square)"]
[null,null,null,null,null,null,81,"ノコギリ波","Lead 2 (sawtooth)"]
[null,null,null,null,null,null,82,"カリオペリード","Lead 3 (calliope)"]
[null,null,null,null,null,null,83,"チフリード","Lead 4 (chiff)"]
[null,null,null,null,null,null,84,"チャランゴリード","Lead 5 (charang)"]
[null,null,null,null,null,null,85,"声リード","Lead 6 (voice)"]
[null,null,null,null,null,null,86,"フィフスズリード","Lead 7 (fifths)"]
[null,null,null,null,null,null,87,"ベース + リード","Lead 8 (bass + lead)"]
[null,null,null,null,null,null,88,"ファンタジア","Pad 1 (Fantasia)"]
[null,null,null,null,null,null,89,"ウォーム","Pad 2 (warm)"]
[null,null,null,null,null,null,90,"ポリシンセ","Pad 3 (polysynth)"]
[null,null,null,null,null,null,91,"クワイア","Pad 4 (choir)"]
[null,null,null,null,null,null,92,"ボウ","Pad 5 (bowed)"]
[null,null,null,null,null,null,93,"メタリック","Pad 6 (metallic)"]
[null,null,null,null,null,null,94,"ハロー","Pad 7 (halo)"]
[null,null,null,null,null,null,95,"スウィープ","Pad 8 (sweep)"]
[null,null,null,null,null,null,96,"雨","FX 1 (rain)"]
[null,null,null,null,null,null,97,"サウンドトラック","FX 2 (soundtrack)"]
[null,null,null,null,null,null,98,"クリスタル","FX 3 (crystal)"]
[null,null,null,null,null,null,99,"アトモスフィア","FX 4 (atmosphere)"]
[null,null,null,null,null,null,100,"ブライトネス","FX 5 (brightness)"]
[null,null,null,null,null,null,101,"ゴブリン","FX 6 (goblins)"]
[null,null,null,null,null,null,102,"エコー","FX 7 (echoes)"]
[null,null,null,null,null,null,103,"サイファイ","FX 8 (sci-fi)"]
[null,null,null,null,null,null,104,"シタール","Sitar"]
[null,null,null,null,null,null,105,"バンジョー","Banjo"]
[null,null,null,null,null,null,106,"三味線","Shamisen"]
[null,null,null,null,null,null,107,"琴","Koto"]
[null,null,null,null,null,null,108,"カリンバ","Kalimba"]
[null,null,null,null,null,null,109,"バグパイプ","Bagpipe"]
[null,null,null,null,null,null,110,"フィドル","Fiddle"]
[null,null,null,null,null,null,111,"シャハナーイ","Shanai"]
[null,null,null,null,null,null,112,"ティンクルベル","Tinkle Bell"]
[null,null,null,null,null,null,113,"アゴゴ","Agogo"]
[null,null,null,null,null,null,114,"スチールドラム","Steel Drums"]
[null,null,null,null,null,null,115,"ウッドブロック","Woodblock"]
[null,null,null,null,null,null,116,"太鼓","Taiko Drum"]
[null,null,null,null,null,null,117,"メロディックタム","Melodic Tom"]
[null,null,null,null,null,null,118,"シンセドラム","Synth Drum"]
[null,null,null,null,null,null,119,"逆シンバル","Reverse Cymbal"]
[null,null,null,null,null,null,120,"ギターフレットノイズ","Guitar Fret Noise"]
[null,null,null,null,null,null,121,"ブレスノイズ","Breath Noise"]
[null,null,null,null,null,null,122,"海岸","Seashore"]
[null,null,null,null,null,null,123,"鳥の囀り","Bird Tweet"]
[null,null,null,null,null,null,124,"電話のベル","Telephone Ring"]
[null,null,null,null,null,null,125,"ヘリコプター","Helicopter"]
[null,null,null,null,null,null,126,"拍手","Applause"]
[null,null,null,null,null,null,127,"銃声","Gunshot"]